bitfinex-derivatives/quotes_BTCF0:USTF0_20240814
["timestamp","ask_amount","ask_price","bid_price","bid_amount"]
[1723651952677,0.08417,59375.0,59374.0,0.374971]
[1723651952878,0.06741527,59380.0,59374.0,0.2908]
[1723651953074,0.05036621,59378.0,59377.0,0.084167]
[1723651953280,0.084164,59379.0,59378.0,0.084165]
[1723651953676,0.06741527,59380.0,59379.0,0.084164]
[1723651953870,0.00025268,59380.0,59379.0,0.084164]
[1723651955079,0.00125268,59380.0,59379.0,0.084164]
[1723651955282,0.05162475,59380.0,59379.0,0.084164]
[1723651955579,0.05262475,59380.0,59379.0,0.090164]
[1723651955979,0.05262475,59380.0,59379.0,0.09848797]
[1723651956785,0.05062475,59380.0,59379.0,0.09248797]
[1723651957173,0.13478675,59380.0,59379.0,0.09248797]
[1723651957381,0.13578675,59380.0,59379.0,0.09248797]
[1723651957682,0.00125268,59380.0,59379.0,0.09248797]
[1723651957883,0.05162475,59380.0,59379.0,0.09248797]
[1723651958290,0.00125268,59380.0,59379.0,0.09248797]
[1723651959681,0.00125268,59380.0,59379.0,0.17665197]
[1723651959878,0.08389459,59394.0,59379.0,0.17665197]
[1723651959879,0.05037207,59395.0,59393.0,0.168288]
[1723651960184,0.09195374,59404.0,59394.0,1.1411]
[1723651960185,0.13450107,59404.0,59394.0,1.1411]
[1723651960386,0.084129,59404.0,59403.0,0.2908]
[1723651961585,0.36105268,59409.0,59403.0,0.2908]
[1723651961586,0.00025268,59409.0,59403.0,0.2908]
[1723651962087,0.001,59404.0,59403.0,0.38093]
[1723651963194,0.084124,59407.0,59403.0,0.38093]
[1723651963195,0.084124,59407.0,59404.0,0.084128]
[1723651963395,0.084124,59407.0,59404.0,0.444928]
[1723651963699,0.084126,59406.0,59404.0,0.444928]
[1723651964084,0.084126,59406.0,59405.0,0.084127]
[1723651964288,0.00025268,59409.0,59407.0,0.084124]
[1723651964490,0.00025268,59409.0,59408.0,0.084123]
[1723651965492,0.084095,59428.0,59422.0,0.2908]
[1723651965694,0.3608,59430.0,59422.0,0.2908]
[1723651965892,0.444892,59430.0,59428.0,0.084093]
[1723651966098,0.084086,59434.0,59430.0,0.084092]
[1723651966305,0.084086,59434.0,59429.0,0.2908]
[1723651966898,0.084088,59433.0,59430.0,0.084092]
[1723651967298,0.084086,59434.0,59430.0,0.084092]
[1723651967486,0.084087,59433.0,59430.0,0.084092]
[1723651968599,0.093087,59433.0,59430.0,0.085092]
[1723651969397,0.009,59433.0,59430.0,0.001]
[1723651969590,0.08409,59431.0,59430.0,0.001]
[1723651970401,0.08409,59431.0,59430.0,0.002]
[1723651971301,0.09309,59431.0,59430.0,0.002]
[1723651971505,0.10509,59431.0,59430.0,0.002]
[1723651972188,0.021,59431.0,59430.0,0.086092]
[1723651975196,0.10509,59431.0,59430.0,0.086092]
[1723651975398,0.10509,59431.0,59430.0,0.002]
[1723651975998,0.084096,59427.0,59426.0,0.00025245]
[1723651976204,0.444896,59427.0,59426.0,0.00025245]
[1723651978009,0.452896,59427.0,59426.0,0.00125245]
[1723651978592,0.462896,59427.0,59426.0,0.00225245]
[1723651980406,0.018,59427.0,59426.0,0.08634945]
[1723651981403,0.00025245,59437.0,59436.0,0.084083]
[1723651981599,0.444868,59447.0,59436.0,0.2908]
[1723651981801,0.444868,59447.0,59446.0,0.2908]
[1723651982603,0.444868,59447.0,59446.0,0.29922879]
[1723651982904,0.3608,59447.0,59441.0,0.29105245]
[1723651983101,0.3608,59442.0,59441.0,0.29105245]
[1723651983702,0.444875,59442.0,59441.0,0.29105245]
[1723651984407,0.456875,59442.0,59441.0,0.29105245]
[1723651985120,0.54095,59442.0,59441.0,0.00025245]
[1723651986806,0.18015,59442.0,59441.0,0.00025245]
[1723651987007,0.096075,59442.0,59441.0,0.00025245]
[1723651987203,0.096075,59442.0,59441.0,0.29105245]
[1723651987604,0.096075,59442.0,59441.0,0.29205245]
[1723651988004,0.012,59442.0,59441.0,0.37612845]
[1723651988909,0.096075,59442.0,59441.0,0.37612845]
[1723651989108,0.096075,59442.0,59441.0,0.29205245]
[1723651990599,0.10448979,59442.0,59441.0,0.00125245]
[1723651990812,0.096075,59442.0,59441.0,0.00125245]
[1723651991013,0.096075,59442.0,59441.0,0.29205245]
[1723651991408,0.14644707,59442.0,59441.0,0.29205245]
[1723651992203,0.14644707,59442.0,59441.0,0.17494399]
[1723651992405,0.096075,59442.0,59441.0,0.17494399]
[1723651992608,0.14625881,59442.0,59441.0,0.17494399]
[1723651993011,0.096075,59442.0,59441.0,0.25901999]
[1723651993407,0.14625881,59442.0,59441.0,0.25901999]
[1723651993916,0.096075,59442.0,59441.0,0.25901999]
[1723651995315,0.16323759,59442.0,59441.0,0.25901999]
[1723651995521,0.0790561,59442.0,59441.0,0.26760268]
[1723651995808,0.012,59442.0,59441.0,0.26760268]
[1723651996805,0.096075,59442.0,59441.0,0.26760268]
[1723651997413,0.1631311,59442.0,59441.0,0.17494399]
[1723651997612,0.096075,59442.0,59441.0,0.17494399]
[1723651998615,0.456875,59442.0,59441.0,0.17494399]
[1723651998818,0.54095,59442.0,59441.0,0.17494399]
[1723651999813,0.62484459,59442.0,59441.0,0.17494399]
[1723652000315,0.54095,59442.0,59441.0,0.17494399]
[1723652000909,0.54953015,59442.0,59441.0,0.17494399]
[1723652001115,0.63342474,59442.0,59441.0,0.17494399]
[1723652001515,0.54953015,59442.0,59441.0,0.17494399]
[1723652001815,0.6333728,59442.0,59441.0,0.17494399]
[1723652002026,0.62479265,59442.0,59441.0,0.17494399]
[1723652002214,0.54071765,59442.0,59441.0,0.17494399]
[1723652002408,0.54095,59442.0,59441.0,0.17494399]
[1723652002916,0.62479265,59442.0,59441.0,0.17494399]
[1723652003902,0.084082,59437.0,59436.0,0.29105245]
[1723652004113,0.15116259,59437.0,59436.0,0.29105245]
[1723652004314,0.084082,59437.0,59436.0,0.29105245]
[1723652004510,0.23524459,59437.0,59436.0,0.29105245]
[1723652005611,0.528964,59437.0,59436.0,0.29105245]
[1723652005812,0.61281474,59437.0,59436.0,0.29105245]
[1723652006112,0.61381474,59437.0,59436.0,0.29205245]
[1723652007120,0.61981474,59437.0,59436.0,0.29305245]
[1723652007516,0.5653535,59437.0,59436.0,0.29305245]
[1723652007713,0.61988973,59437.0,59436.0,0.29305245]
[1723652007913,0.6198905,59437.0,59436.0,0.29305245]
[1723652008212,0.56540976,59437.0,59436.0,0.29305245]
[1723652008717,0.56540976,59437.0,59436.0,0.00225245]
[1723652008718,0.56536073,59437.0,59436.0,0.00225245]
[1723652008908,0.56536695,59437.0,59436.0,0.00225245]
[1723652009913,0.57388035,59437.0,59436.0,0.00225245]
[1723652011915,0.5444774,59437.0,59436.0,0.00225245]
[1723652012914,0.62844351,59437.0,59436.0,0.00225245]
[1723652014427,0.5444774,59437.0,59436.0,0.00225245]
[1723652015827,1.0492374,59437.0,59436.0,0.00225245]
[1723652016023,0.08409,59431.0,59430.0,0.2908]
[1723652016228,0.15124718,59431.0,59430.0,0.2908]
[1723652016817,0.08409,59431.0,59430.0,0.2908]
[1723652017525,0.16818,59431.0,59430.0,0.2908]
[1723652017732,0.06715718,59432.0,59428.0,0.1628]
[1723652017733,0.168186,59429.0,59428.0,0.1628]
[1723652018229,0.252291,59426.0,59425.0,1e-08]
[1723652018526,0.084116,59413.0,59412.0,0.1566]
[1723652019929,0.21858019,59413.0,59412.0,0.1566]
[1723652020225,0.084123,59408.0,59407.0,0.00025245]
[1723652020430,1.118169,59408.0,59407.0,1e-08]
[1723652020638,1.518169,59408.0,59407.0,1e-08]
[1723652021331,1.60198132,59408.0,59407.0,1e-08]
[1723652021628,1.518169,59408.0,59407.0,1e-08]
[1723652022425,1.5850816,59408.0,59407.0,1e-08]
[1723652023430,1.518169,59408.0,59407.0,1e-08]
[1723652024332,1.518169,59408.0,59407.0,0.00100001]
[1723652024333,1.520169,59408.0,59407.0,0.00100001]
[1723652024535,1.5702925,59408.0,59407.0,0.00100001]
[1723652024927,0.084136,59399.0,59398.0,0.1622]
[1723652025125,0.444936,59399.0,59398.0,0.1622]
[1723652025333,0.3608,59399.0,59398.0,0.246337]
[1723652025530,0.36564,59408.0,59402.0,0.084131]
[1723652025727,0.084128,59405.0,59404.0,0.2908]
[1723652025929,0.084129,59404.0,59403.0,0.02126249]
[1723652027129,0.085129,59404.0,59403.0,0.03026249]
[1723652027727,0.085129,59404.0,59403.0,0.03884157]
[1723652028126,0.001,59404.0,59403.0,0.03884157]
[1723652028426,0.001,59404.0,59403.0,0.12297157]
[1723652028737,0.001,59404.0,59403.0,0.11397157]
[1723652028932,0.004,59408.0,59403.0,0.11397157]
[1723652029234,0.084127,59406.0,59403.0,0.11397157]
[1723652029733,0.003,59404.0,59403.0,0.11397157]
[1723652030133,0.088129,59404.0,59403.0,0.12297157]
[1723652030433,0.088129,59404.0,59403.0,0.03884157]
[1723652032231,0.445929,59404.0,59403.0,0.04184157]
[1723652032732,0.444929,59404.0,59403.0,0.03284157]
[1723652033235,0.445929,59404.0,59403.0,0.05084157]
[1723652033626,0.085129,59404.0,59403.0,0.05084157]
[1723652033827,0.085129,59404.0,59401.0,0.2908]
[1723652033828,0.084129,59404.0,59401.0,0.2908]
[1723652034027,0.3608,59402.0,59401.0,0.29940575]
[1723652034534,0.08413,59403.0,59401.0,0.29940575]
[1723652034733,0.3608,59402.0,59401.0,0.29940575]
[1723652034928,0.3608,59402.0,59401.0,0.38353875]
[1723652035134,0.003,59404.0,59402.0,0.084131]
[1723652035328,0.003,59404.0,59403.0,0.08413]
[1723652035532,0.444913,59415.0,59409.0,0.084122]
[1723652035735,0.3608,59415.0,59409.0,0.084122]
[1723652036138,0.444913,59415.0,59409.0,0.084122]
[1723652036332,0.1342385,59414.0,59409.0,0.084122]
[1723652036533,0.1342385,59414.0,59409.0,0.232022]
[1723652036937,0.084116,59413.0,59409.0,0.232022]
[1723652037131,0.08412,59411.0,59409.0,0.232022]
[1723652037329,0.0501235,59414.0,59409.0,0.1479]
[1723652037330,0.08437245,59410.0,59409.0,0.1479]
[1723652037532,0.44517245,59410.0,59409.0,0.1479]
[1723652037737,0.084122,59409.0,59408.0,0.1404]
[1723652039844,0.085122,59409.0,59408.0,0.16086075]
[1723652040039,0.085122,59409.0,59408.0,0.1524]
[1723652040836,0.445922,59409.0,59408.0,0.1524]
[1723652041146,0.085122,59409.0,59408.0,0.1524]
[1723652042148,0.085122,59409.0,59408.0,0.1534]
[1723652043342,0.085122,59409.0,59408.0,0.1634]
[1723652043938,0.001,59409.0,59408.0,0.246523]
[1723652044143,0.002,59409.0,59408.0,0.246523]
[1723652044545,0.086122,59409.0,59408.0,0.246523]
[1723652044743,0.086122,59409.0,59408.0,0.1624]
[1723652045532,0.170244,59409.0,59408.0,0.022]
[1723652045740,0.08413,59403.0,59400.0,0.00882379]
[1723652045941,0.08413,59403.0,59399.0,0.14865245]
[1723652046141,0.084133,59401.0,59399.0,0.14865245]
[1723652046847,0.084134,59400.0,59399.0,0.14865245]
[1723652047047,0.084134,59400.0,59399.0,0.15746125]
[1723652048434,0.084134,59400.0,59399.0,0.20693024]
[1723652048633,0.084134,59400.0,59399.0,0.15165245]
[1723652048634,0.1342575,59400.0,59399.0,0.15165245]
[1723652049347,0.529068,59400.0,59399.0,0.00325245]
[1723652049551,0.529068,59400.0,59390.0,0.1432]
[1723652049552,0.084147,59391.0,59390.0,0.1432]
[1723652050461,0.168294,59391.0,59390.0,0.1432]
[1723652050647,0.08416,59382.0,59381.0,0.1359]
[1723652050946,0.443834,59382.0,59381.0,0.1359]
[1723652051141,0.083034,59382.0,59381.0,0.1359]
[1723652051748,0.083034,59382.0,59381.0,0.02587086]
[1723652051946,0.083034,59382.0,59381.0,0.0281759]
[1723652052347,0.084034,59382.0,59381.0,0.0281759]
[1723652053649,0.084034,59382.0,59381.0,0.00230504]
[1723652053650,0.444834,59382.0,59381.0,0.00230504]
[1723652053858,0.528994,59382.0,59381.0,0.00230504]
[1723652054357,0.529994,59382.0,59381.0,0.00230504]
[1723652054656,0.445834,59382.0,59381.0,0.00230504]
[1723652055951,0.446834,59382.0,59381.0,0.00230504]
[1723652056257,0.530994,59382.0,59381.0,0.00230504]
[1723652056558,0.168334,59377.0,59376.0,0.000169]
[1723652056746,0.529134,59377.0,59376.0,0.000169]
[1723652056947,0.16834,59375.0,59374.0,0.00021027]
[1723652057146,0.16834,59375.0,59374.0,0.00132521]
[1723652058456,0.16834,59375.0,59374.0,0.00363077]
[1723652059049,0.67362,59375.0,59374.0,0.00363077]
[1723652060356,0.16834,59375.0,59374.0,0.00363077]
[1723652061052,0.26133005,59375.0,59374.0,0.00363077]
[1723652061450,0.26233005,59375.0,59374.0,0.00363077]
[1723652061851,0.76761005,59375.0,59374.0,0.00363077]
[1723652062458,0.084184,59365.0,59363.0,0.2908]
[1723652062657,0.3608,59369.0,59363.0,0.3695844]
[1723652062854,0.084184,59366.0,59364.0,0.084185]
[1723652063254,0.084184,59366.0,59363.0,0.3695844]
[1723652063255,0.3608,59369.0,59363.0,0.3695844]
[1723652063559,0.084185,59364.0,59363.0,0.3695844]
[1723652064752,0.084185,59364.0,59363.0,0.3785844]
[1723652064949,0.084185,59364.0,59363.0,0.4627714]
[1723652065749,0.00021027,59368.0,59363.0,0.6693844]
[1723652065959,0.00021027,59368.0,59367.0,0.084181]
[1723652066353,0.084182,59366.0,59365.0,0.3608]
[1723652067355,0.084182,59366.0,59365.0,0.36192555]
[1723652067752,0.00021027,59368.0,59365.0,0.36192555]
[1723652067959,0.00021027,59368.0,59367.0,0.084181]
[1723652068359,0.00121027,59368.0,59367.0,0.99062655]
[1723652068955,0.08539027,59368.0,59367.0,0.00112555]
[1723652071461,0.08299785,59367.0,59366.0,0.084182]
[1723652072163,0.00221027,59368.0,59367.0,0.084181]
[1723652072365,0.084169,59376.0,59367.0,0.589501]
[1723652072666,0.084169,59376.0,59375.0,0.08417]
[1723652073862,0.444964,59379.0,59378.0,0.084165]
[1723652074173,0.00025268,59381.0,59380.0,0.084163]
[1723652075157,0.08441368,59381.0,59380.0,0.084163]
[1723652075361,0.08541368,59381.0,59380.0,0.09263926]
[1723652075764,0.08541368,59381.0,59380.0,0.09363926]
[1723652075969,0.00125268,59381.0,59380.0,0.99883926]
[1723652076269,0.08415,59389.0,59388.0,0.084151]
[1723652076460,0.3608,59397.0,59386.0,0.6516]
[1723652076658,0.084145,59393.0,59392.0,0.374946]
[1723652077169,0.084136,59399.0,59396.0,0.08414]
[1723652077363,0.08438968,59398.0,59397.0,0.2664]
[1723652078469,0.08438968,59398.0,59397.0,0.1332]
[1723652078971,0.08438968,59398.0,59397.0,0.1343256]
[1723652079157,0.08638968,59398.0,59397.0,0.1353256]
[1723652080273,0.08638968,59398.0,59397.0,0.0021256]
[1723652081765,0.08638968,59398.0,59392.0,0.45343536]
[1723652081766,0.084144,59393.0,59392.0,0.00849036]
[1723652082072,0.084144,59393.0,59392.0,0.0011256]
[1723652084964,0.085144,59393.0,59392.0,0.0011256]
[1723652085364,0.084144,59393.0,59392.0,0.0011256]
[1723652085660,0.085144,59393.0,59392.0,0.0011256]
[1723652086176,0.001,59393.0,59392.0,0.0892716]
[1723652086373,0.001,59393.0,59392.0,0.3800716]
[1723652087171,0.08414,59397.0,59395.0,0.084141]
[1723652087371,0.08414,59397.0,59396.0,0.08414]
[1723652087874,0.084143,59395.0,59392.0,0.7417496]
[1723652088068,0.0830184,59393.0,59392.0,0.2948]
[1723652089670,0.0830184,59393.0,59392.0,0.29592392]
[1723652090669,0.0840184,59393.0,59392.0,0.29592392]
[1723652091075,0.001,59393.0,59392.0,0.37606992]
[1723652091665,0.001,59393.0,59392.0,0.73686992]
[1723652091871,0.00025268,59398.0,59397.0,0.084139]
[1723652092270,0.00025268,59398.0,59397.0,0.589219]
[1723652093072,0.00025268,59398.0,59397.0,0.08638792]
[1723652093878,0.00025268,59398.0,59397.0,0.95226792]
[1723652094385,0.00125268,59398.0,59397.0,0.95226792]
[1723652094676,0.00125268,59398.0,59397.0,1.35226792]
[1723652094876,0.00125268,59398.0,59397.0,1.44518781]
[1723652095177,0.3608,59406.0,59405.0,0.084127]
[1723652095377,0.3608,59406.0,59405.0,0.374927]
[1723652096074,0.3608,59406.0,59405.0,0.37717592]
[1723652097775,0.084125,59407.0,59406.0,0.084126]
[1723652097974,0.08437168,59411.0,59410.0,0.08412]
[1723652098372,0.084124,59408.0,59406.0,0.00224892]
[1723652099185,0.084124,59408.0,59407.0,0.08637292]
[1723652099568,0.00025268,59411.0,59410.0,0.08412]
[1723652099769,0.084106,59420.0,59419.0,0.084106]
[1723652099972,0.444906,59420.0,59419.0,0.374906]
[1723652100272,0.529012,59420.0,59419.0,0.00224892]
[1723652101074,0.168226,59415.0,59414.0,0.00025245]
[1723652101275,0.529026,59415.0,59414.0,0.00025245]
[1723652101776,0.444913,59415.0,59414.0,0.00025245]
[1723652102283,0.529026,59415.0,59414.0,0.00025245]
[1723652102484,0.529026,59415.0,59408.0,0.6516]
[1723652102485,0.168244,59409.0,59408.0,0.3608]
[1723652102786,0.084129,59404.0,59403.0,0.00088]
[1723652103078,0.3608,59404.0,59398.0,0.084137]
[1723652103678,0.084136,59400.0,59398.0,0.084137]
[1723652103982,0.084136,59400.0,59398.0,0.09294375]
[1723652104180,0.084136,59399.0,59398.0,0.09294375]
[1723652104483,0.05024855,59402.0,59397.0,0.2908]
[1723652104484,0.084137,59398.0,59397.0,0.2908]
[1723652105075,0.16828,59396.0,59395.0,0.00025245]
[1723652105278,0.08414,59396.0,59395.0,0.00025245]
[1723652105579,0.3608,59398.0,59395.0,0.00025245]
[1723652105775,0.08414,59397.0,59396.0,0.2908]
[1723652106175,0.001,59398.0,59396.0,0.2908]
[1723652106787,0.49527618,59404.0,59396.0,0.2908]
[1723652106979,0.001,59398.0,59397.0,0.084139]
[1723652107284,0.001,59398.0,59397.0,0.13403707]
[1723652107482,0.003,59398.0,59397.0,0.084139]
[1723652107679,0.08437745,59407.0,59397.0,1.03907437]
[1723652107680,0.05059963,59407.0,59397.0,1.03907437]
[1723652107882,0.00025245,59407.0,59403.0,0.2908]
[1723652108082,0.084127,59406.0,59405.0,0.084126]
[1723652109883,0.001,59406.0,59405.0,0.084126]
[1723652112388,0.001,59406.0,59405.0,0.09290343]
[1723652112790,0.085126,59406.0,59405.0,0.00877743]
[1723652112988,0.084128,59405.0,59404.0,0.1304]
[1723652113292,0.084128,59405.0,59404.0,0.1391792]
[1723652113784,0.084128,59405.0,59404.0,0.03451849]
[1723652114482,0.084128,59405.0,59404.0,0.11864749]
[1723652114985,0.084128,59405.0,59404.0,0.16850235]
[1723652115185,0.001,59406.0,59405.0,0.084128]
[1723652115390,0.001,59406.0,59405.0,0.13399241]
[1723652115581,0.001,59406.0,59405.0,0.084128]
[1723652115781,0.001,59406.0,59405.0,0.13399241]
[1723652116181,0.001,59406.0,59405.0,0.989128]
[1723652116787,0.00025245,59407.0,59406.0,0.084126]
[1723652117187,0.00025245,59407.0,59406.0,0.17872754]
[1723652117397,0.00025245,59407.0,59406.0,0.1289]
[1723652117690,0.08437745,59407.0,59406.0,0.1289]
[1723652118685,0.44517745,59407.0,59406.0,0.1289]
[1723652119191,0.08437745,59407.0,59406.0,0.1289]
[1723652119984,0.08637745,59407.0,59406.0,0.1289]
[1723652120587,0.08637745,59407.0,59404.0,0.0087792]
[1723652120588,0.084128,59405.0,59404.0,0.0087792]
[1723652120788,0.08413,59403.0,59402.0,0.04982754]
[1723652121085,0.084133,59401.0,59400.0,0.3608]
[1723652121392,0.084133,59401.0,59400.0,0.51151768]
[1723652121783,0.084133,59401.0,59400.0,0.444935]
[1723652121987,0.084133,59401.0,59400.0,0.45362955]
[1723652122889,0.085133,59401.0,59400.0,0.45362955]
[1723652124491,0.084135,59400.0,59395.0,0.0510208]
[1723652124691,0.084135,59400.0,59395.0,0.00025245]
[1723652124692,0.57949379,59396.0,59395.0,0.00025245]
[1723652124900,0.51215838,59396.0,59395.0,0.00025245]
[1723652125094,0.44494,59396.0,59395.0,0.00025245]
[1723652125398,0.51213738,59396.0,59395.0,0.00025245]
[1723652125591,0.44494,59396.0,59395.0,0.00025245]
[1723652125786,0.59627738,59396.0,59395.0,0.00025245]
[1723652126199,0.61322,59396.0,59395.0,0.00025245]
[1723652126400,0.52908,59396.0,59395.0,0.00025245]
[1723652126695,1.37712589,59396.0,59395.0,0.00112481]
[1723652126995,1.06144228,59396.0,59395.0,0.00112481]
[1723652127198,1.51808628,59396.0,59395.0,0.00112481]
[1723652128197,1.43416,59396.0,59395.0,0.00112481]
[1723652128596,1.51808628,59396.0,59395.0,0.00112481]
[1723652128798,1.44516,59396.0,59395.0,0.00324808]
[1723652129093,1.47244402,59396.0,59395.0,0.00324808]
[1723652129301,1.61317056,59396.0,59395.0,0.00324808]
[1723652129502,0.084147,59391.0,59390.0,0.00025245]
[1723652129699,0.51204531,59391.0,59390.0,0.00025245]
[1723652129910,0.51204531,59391.0,59390.0,4.5e-07]
[1723652129911,0.613241,59391.0,59390.0,4.5e-07]
[1723652130096,0.08417,59375.0,59374.0,0.00016996]
[1723652130301,0.44497,59375.0,59374.0,0.00016996]
[1723652132696,0.52914,59375.0,59374.0,0.00016996]
[1723652132901,0.52914,59375.0,59369.0,0.00025245]
[1723652132902,0.084177,59370.0,59369.0,0.00025245]
[1723652133199,0.444977,59370.0,59369.0,0.00025245]
[1723652133902,0.52932396,59370.0,59369.0,0.00025245]
[1723652136602,0.52932396,59370.0,59369.0,0.00143654]
[1723652136800,0.61450096,59370.0,59369.0,0.00643654]
[1723652137001,0.084201,59354.0,59346.0,0.3608]
[1723652137197,0.3608,59351.0,59350.0,0.216805]
[1723652138100,0.3608,59351.0,59350.0,0.722285]
[1723652138299,0.3608,59351.0,59350.0,1.122285]
[1723652139205,0.445004,59351.0,59350.0,0.63808]
[1723652139401,0.446004,59351.0,59350.0,0.1386]
[1723652139591,0.3618,59351.0,59350.0,0.006]
[1723652139793,0.446004,59351.0,59350.0,0.006]
[1723652140700,0.530208,59351.0,59350.0,0.006]
[1723652141306,0.614412,59351.0,59350.0,0.006]
[1723652141500,0.3618,59351.0,59342.0,0.2908]
[1723652141702,0.084211,59347.0,59342.0,0.26863897]
[1723652142710,0.084212,59346.0,59344.0,0.084213]
[1723652142905,0.08435798,59345.0,59342.0,0.26863897]
[1723652143206,0.08435798,59345.0,59342.0,0.27750678]
[1723652143399,0.08435698,59345.0,59344.0,0.03695415]
[1723652144210,0.08435698,59345.0,59344.0,0.12116815]
[1723652144597,0.08435698,59345.0,59344.0,0.03695415]
[1723652144598,0.08535698,59345.0,59344.0,0.03695415]
[1723652145004,0.08435698,59345.0,59344.0,0.03695415]
[1723652145697,0.08535698,59345.0,59344.0,0.03695415]
[1723652146005,0.08635698,59345.0,59344.0,0.03695415]
[1723652146704,0.08735698,59345.0,59344.0,0.03695415]
[1723652147409,0.00314398,59345.0,59344.0,0.12116815]
[1723652148005,0.00214398,59345.0,59344.0,0.12116815]
[1723652148611,0.00114398,59345.0,59344.0,0.12116815]
[1723652148813,0.08635698,59345.0,59344.0,0.03695415]
[1723652149114,0.08535698,59345.0,59344.0,0.03695415]
[1723652149510,0.08635698,59345.0,59344.0,0.03695415]
[1723652149815,0.00214398,59345.0,59344.0,0.12116815]
[1723652150315,0.08635698,59345.0,59344.0,0.03695415]
[1723652150507,0.08535698,59345.0,59344.0,0.03695415]
[1723652150814,0.08635698,59345.0,59344.0,0.03695415]
[1723652151213,0.17056998,59345.0,59344.0,0.03695415]
[1723652151715,0.168448,59337.0,59336.0,0.2708]
[1723652151912,0.52941796,59337.0,59336.0,0.1346]
[1723652152511,0.52941796,59337.0,59327.0,0.1306]
[1723652152512,0.168454,59335.0,59327.0,0.1306]
[1723652152700,0.168454,59335.0,59318.0,0.2908]
[1723652152701,0.084242,59324.0,59323.0,0.1364]
[1723652152906,0.445042,59324.0,59323.0,0.1364]
[1723652153111,0.084247,59321.0,59319.0,0.1306]
[1723652153312,0.084247,59321.0,59320.0,0.3088262]
[1723652153512,0.084247,59321.0,59320.0,0.3]
[1723652153718,0.08440326,59321.0,59320.0,0.3]
[1723652155102,0.00015626,59321.0,59320.0,0.3]
[1723652155308,0.00015626,59321.0,59320.0,0.384248]
[1723652155613,0.00115626,59321.0,59320.0,0.384248]
[1723652155812,0.00115626,59321.0,59320.0,0.3]
[1723652156007,0.08440326,59321.0,59320.0,0.3]
[1723652156715,1.07537026,59321.0,59320.0,0.3]
[1723652156914,1.08531911,59321.0,59320.0,0.3]
[1723652158313,0.084262,59310.0,59309.0,0.1418]
[1723652158511,0.084262,59310.0,59299.0,0.1309]
[1723652158512,0.7217233,59310.0,59299.0,0.1309]
[1723652158713,0.445077,59300.0,59299.0,0.1326]
[1723652159008,0.36098952,59300.0,59299.0,0.1326]
[1723652159216,0.44526652,59300.0,59299.0,0.1326]
[1723652159522,0.44526652,59300.0,59299.0,0.14125556]
[1723652160213,0.44526652,59300.0,59299.0,0.1326]
[1723652160512,0.36098952,59300.0,59299.0,0.216878]
[1723652160713,0.36098952,59300.0,59299.0,0.1326]
[1723652160923,0.44526552,59300.0,59299.0,0.1326]
[1723652161718,0.44526552,59300.0,59299.0,0.2719]
[1723652162021,0.08446552,59300.0,59299.0,0.2719]
[1723652162412,0.44626552,59300.0,59299.0,0.2719]
[1723652162820,0.08546552,59300.0,59299.0,0.2719]
[1723652163016,0.08746552,59300.0,59299.0,0.2719]
[1723652163221,0.08646552,59300.0,59299.0,0.2719]
[1723652163815,0.08746552,59300.0,59299.0,0.2719]
[1723652164115,0.44826552,59300.0,59299.0,0.2719]
[1723652164319,0.08746552,59300.0,59299.0,0.2719]
[1723652164521,0.44826552,59300.0,59299.0,0.2719]
[1723652164916,0.44826552,59300.0,59289.0,0.1285]
[1723652164917,0.084291,59290.0,59289.0,0.1285]
[1723652165115,0.44526275,59290.0,59289.0,0.1285]
[1723652165922,0.084295,59287.0,59284.0,0.00894356]
[1723652166125,0.084295,59287.0,59278.0,0.2731]
[1723652166426,0.16859,59287.0,59278.0,0.2731]
[1723652166611,0.16859,59287.0,59279.0,0.00907518]
[1723652167119,0.09333608,59287.0,59279.0,0.00907518]
[1723652168417,0.17763108,59287.0,59279.0,0.00907518]
[1723652169724,1.10363108,59287.0,59278.0,0.2731]
[1723652169925,1.08363108,59287.0,59278.0,0.2731]
[1723652170117,0.68363108,59287.0,59278.0,0.2731]
[1723652170322,0.17763108,59287.0,59278.0,0.2731]
[1723652170523,1.08363108,59287.0,59278.0,0.2731]
[1723652170926,1.08463108,59287.0,59278.0,0.2731]
[1723652171426,1.08463108,59287.0,59275.0,0.953212]
[1723652171427,0.084309,59278.0,59275.0,0.084312]
[1723652171827,0.084308,59279.0,59275.0,0.084312]
[1723652172025,0.084309,59278.0,59275.0,0.084312]
[1723652172225,0.084309,59278.0,59275.0,0.09338149]
[1723652172427,0.3608,59280.0,59275.0,0.00906949]
[1723652172428,0.168622,59276.0,59275.0,0.00906949]
[1723652172723,0.0002129,59277.0,59269.0,0.3608]
[1723652172724,0.084319,59270.0,59269.0,0.3608]
[1723652173129,0.084321,59269.0,59266.0,0.1356]
[1723652173628,0.084321,59269.0,59266.0,0.14460308]
[1723652173822,0.3608,59275.0,59268.0,0.084322]
[1723652174135,0.084316,59273.0,59270.0,0.2908]
[1723652174430,0.084316,59273.0,59272.0,0.084315]
[1723652174817,0.3608,59275.0,59271.0,0.2692]
[1723652174818,0.084316,59272.0,59271.0,0.2692]
[1723652175130,0.3608,59275.0,59274.0,0.084313]
[1723652175323,0.0002129,59277.0,59276.0,0.084311]
[1723652175631,0.3608,59299.0,59287.0,0.084295]
[1723652175928,0.00192001,59305.0,59304.0,0.084271]
[1723652176232,0.00192001,59305.0,59298.0,0.2908]
[1723652176233,0.3608,59309.0,59300.0,0.084275]
[1723652176428,0.445064,59309.0,59301.0,0.1406]
[1723652176634,0.00013858,59308.0,59301.0,0.1406]
[1723652177236,0.00013858,59308.0,59304.0,0.2908]
[1723652177433,0.00013858,59308.0,59307.0,0.084267]
[1723652177732,0.084268,59306.0,59305.0,0.1306]
[1723652177924,0.00013858,59308.0,59304.0,0.29961208]
[1723652178126,0.084267,59307.0,59304.0,0.38388308]
[1723652178430,0.08440458,59308.0,59305.0,0.084269]
[1723652178623,0.00013858,59308.0,59307.0,0.084267]
[1723652179434,0.08440358,59308.0,59304.0,0.38388208]
[1723652179638,0.44507,59305.0,59304.0,0.00881208]
[1723652179833,0.44507,59305.0,59303.0,0.084272]
[1723652181434,0.44607,59305.0,59303.0,0.084272]
[1723652182444,0.44607,59305.0,59304.0,0.084271]